Cogmind - Beta 10.2 @@@ ROGUE MODE // 2020.12.17 @ 22:36:31 Player: Meraxes Result: Destroyed by 8R-AWN with 8R-AWN's Boregun Performance ------------- Evolutions (0) 0 Regions Visited (2) 400 Robots Destroyed (8) 40 Value Destroyed (112) 112 Prototype IDs (0) 0 Alien Tech Used (0) 0 Bonus (-24) -24 TOTAL SCORE: 528 Bonus ------- Friendly Fire -24 Cogmind --------- Core Integrity 0/250 Matter 280/300 Energy 89/100 System Corruption 0% Temperature Cool (0) Movement Rolling (100) Location -10/Mines Parts ------- > --- POWER (1) -------- (None) > --- PROPULSION (2) --- Compact Wheel Compact Wheel > --- UTILITY (2) ------ Medium Storage Unit Targeting Computer > --- WEAPON (2) ------- Beam Rifle > --- INVENTORY (8) ---- Light Ion Engine Flight Unit Flight Unit Datajack Peak State ------------ > --- POWER ------------ Light Ion Engine > --- PROPULSION ------- Flight Unit Flight Unit > --- UTILITY ---------- Medium Storage Unit Targeting Computer > --- WEAPON ----------- Light Assault Rifle Heavy Assault Rifle > --- INVENTORY -------- Light Ion Engine Compact Wheel Assault Rifle Grenade Launcher Datajack [Rating: 8] Favorites ----------- Power Light Ion Engine Engine Light Ion Engine Propulsion Compact Wheel Wheel Compact Wheel Flight Unit Flight Unit Utility Medium Storage Unit Storage Medium Storage Unit Processor Targeting Computer Weapon Assault Rifle Energy Gun Beam Rifle Ballistic Gun Assault Rifle Launcher Grenade Launcher Special Melee Weapon Datajack Build | -11 -10 -10 ------- Run | Scr Mat Min Slots Evolved . | . . . Power . | . . . Propulsion . | . . . Utility . | . . . Weapon . | . . . Parts Attached 24 | 6 1 17 Power 2 | 1 . 1 Engine 2 | 1 . 1 Core . | . . . Reactor . | . . . Propulsion 9 | 2 . 7 Treads . | . . . Leg . | . . . Wheel 6 | 2 . 4 Hover . | . . . Flight 3 | . . 3 Utility 3 | 1 1 1 Device . | . . . Storage 2 | 1 1 . Processor 1 | . . 1 Hackware . | . . . Protection . | . . . Artifact . | . . . Weapon 10 | 2 . 8 Energy Gun 1 | . . 1 Energy Cannon . | . . . Ballistic Gun 6 | 2 . 4 Ballistic Cannon . | . . . Launcher 2 | . . 2 Special Weapon . | . . . Impact Weapon . | . . . Slashing Weapon . | . . . Piercing Weapon . | . . . Special Melee Weapon 1 | . . 1 Unidentified Prototypes . | . . . Parts Lost 9 | . . 9 Power 2 | . . 2 Propulsion 3 | . . 3 Utility . | . . . Weapon 4 | . . 4 Highest Loss Streak 6 | . . 6 Average Slot Usage (%) 90 | . 91 90 Engine 13 | . 14 13 Wheel 21 | . 28 20 Storage 20 | . 20 20 Processor 6 | . . 7 Ballistic Gun 22 | . 28 20 Launcher 3 | . . 4 Naked Turns . | . . . Heaviest Build 19 | 11 19 19 Greatest Support 32 | 32 32 32 Greatest Overweight (x) 3 | . . 3 Average Overweight (x) . | . . . Largest Inventory Capacity 10 | 6 10 10 Average Capacity 8 | 5 7 8 Most Carried 9 | 1 5 9 Average Carried 4 | . 2 6 Final Capacity 10 | 6 10 8 Final Carried 5 | 1 5 4 Class Distribution -------------------- 100% | Mutant Dominant Class ---------------- Mutant | -10/Materials Mutant | -10/Mines Resources | -11 -10 -10 ----------- Run | Scr Mat Min Matter Collected 574 | 184 17 373 Remotely . | . . . Salvage Created 192 | . 42 150 Parts 18 | . 7 11 Haulers Intercepted . | . . . Recyclers Shooed . | . . . Parts Field Recycled . | . . . Retrieved Matter . | . . . Parts Self-Destructed . | . . . Prevented . | . . . Kills | -11 -10 -10 ------- Run | Scr Mat Min Combat Hostiles Destroyed 9 | . 3 6 Guns 9 | . 3 6 Classes Destroyed 4 | . 1 3 Tunneler 1 | . . 1 Swarmer 6 | . 3 3 Sentry 1 | . . 1 Assembled 2 | . . 2 Best Kill Streak 3 | . 3 3 Combat Bots Only 3 | . 3 3 Max Kills in Single Turn 2 | . 2 1 Gunslinging 1 | . 1 . Exploded . | . . . Melee . | . . . Uniques/NPCs Destroyed . | . . . Combat | -11 -10 -10 -------- Run | Scr Mat Min Damage Taken 917 | . 163 754 Core 261 | . 77 184 Absorbed by Shields . | . . . Core Remaining (%) 100 | 100 . . Volleys Fired 30 | . 3 27 Largest 2 | . 2 2 Hottest 53 | . 40 53 Shots Fired 50 | . 6 44 Gun 41 | . 6 35 Cannon . | . . . Launcher 9 | . . 9 Special . | . . . Kinetic 41 | . 6 35 Thermal . | . . . Explosive 9 | . . 9 Electromagnetic . | . . . Robot Hit Streak 8 | . 4 8 Robot Miss Streak 3 | . 2 3 Penetration Max . | . . . Secondary Targets 1 | . 1 . Max Gunslinging Chain 1 | . 1 . Shots Hit Robots 30 | . 4 26 Core Hits 22 | . 3 19 Critical Hits . | . . . Critical Kills . | . . . Critical Parts Destroyed . | . . . Melee Attacks 1 | . . 1 Impact . | . . . Slashing . | . . . Piercing . | . . . Sneak Attacks . | . . . Combat Hostiles . | . . . Follow-up Attacks . | . . . Damage Inflicted 598 | . 57 541 Guns 301 | . 57 244 Cannons . | . . . Explosions 295 | . . 295 Melee . | . . . Ramming 2 | . . 2 Kinetic 301 | . 57 244 Thermal . | . . . Explosive 295 | . . 295 Electromagnetic . | . . . Impact . | . . . Slashing . | . . . Piercing . | . . . Highest Corruption . | . . . Average Corruption . | . . . Corruption Purged . | . . . Overload Shots . | . . . Overflow Damage . | . . . Projectiles . | . . . Explosions . | . . . Melee . | . . . Knockbacks . | . . . Impact . | . . . Kinetic . | . . . Secondary . | . . . Self-Inflicted Damage 2 | . . 2 Shots 1 | . . 1 Rammed 1 | . . 1 Targets Rammed 1 | . . 1 Kicked . | . . . Crushed . | . . . Highest Temperature 9 | . . 9 Average Temperature 4 | . . 4 Received Heat Transfer 18 | . . 18 Siege Activations . | . . . Robots Corrupted . | . . . Combat Hostiles . | . . . Parts Fried . | . . . Impact Corruptions . | . . . Robots Melted . | . . . Combat Hostiles . | . . . Parts Melted . | . . . Heat Transferred . | . . . Parts Sabotaged . | . . . Parts Stolen . | . . . Parts Stripped . | . . . Power Chain Reactions . | . . . Missiles Intercepted . | . . . Alert | -11 -10 -10 ------- Run | Scr Mat Min Peak Influence 133 | . 75 133 Initial 28 | . . 28 Average 85 | . 24 110 Maximum Alert Level . | . . . Low Security (%) 100 | 100 100 100 Level 1 . | . . . Level 2 . | . . . Level 3 . | . . . Level 4 . | . . . Level 5 . | . . . High Security . | . . . Max Security . | . . . Squads Dispatched 1 | . 1 . Investigation 1 | . 1 . Extermination . | . . . Reinforcement . | . . . Assault . | . . . Garrison . | . . . Intercept . | . . . Construction Impeded . | . . . Haulers Reinforced . | . . . Stealth | -11 -10 -10 --------- Run | Scr Mat Min Distress Signals . | . . . Communications Jammed . | . . . Distress Signals . | . . . Times Spotted 19 | . 6 13 Peak Tracking Total 14 | . 3 14 Tactical Retreats . | . . . Traps | -11 -10 -10 ------- Run | Scr Mat Min Traps Triggered 1 | . 1 . Indirectly . | . . . Trap Hack Attempts . | . . . Triggered . | . . . Disarmed . | . . . Reprogrammed . | . . . Reused . | . . . Traps Extracted . | . . . Installed . | . . . Triggered . | . . . Machines | -11 -10 -10 ---------- Run | Scr Mat Min Machines Disabled . | . . . Max in Single Turn . | . . . Machines Sabotaged . | . . . Garrisons Compromised . | . . . Overloaded Fab Kills . | . . . Fab Network Shutdowns . | . . . Hacking | -11 -10 -10 --------- Run | Scr Mat Min Machines Accessed . | . . . Terminals . | . . . Fabricators . | . . . Repair Stations . | . . . Recycling Units . | . . . Scanalyzers . | . . . Garrison Access . | . . . Total Hacks . | . . . Successful . | . . . Failed . | . . . Catastrophic . | . . . Database Lockouts . | . . . Manual . | . . . Terminals . | . . . Fabricators . | . . . Repair Stations . | . . . Recycling Units . | . . . Scanalyzers . | . . . Garrison Access . | . . . Terminal Hacks . | . . . Fabricator Hacks . | . . . Repair Station Hacks . | . . . Recycling Unit Hacks . | . . . Scanalyzer . | . . . Garrison Access Hacks . | . . . Unauthorized Hacks . | . . . Terminals . | . . . Fabricators . | . . . Repair Stations . | . . . Recycling Units . | . . . Scanalyzers . | . . . Garrison Access . | . . . Data Cores Recovered . | . . . Used . | . . . Hacking Detections . | . . . Full Trace Events . | . . . Feedback Events . | . . . Feedback Blocked . | . . . Robot Schematics Acquired . | . . . Robots Built . | . . . Matter . | . . . Time . | . . . Total Robot Build Rating . | . . . Part Schematics Acquired . | . . . Parts Built . | . . . Matter . | . . . Time . | . . . Total Part Build Rating . | . . . Parts Repaired . | . . . Time . | . . . Parts Recycled . | . . . Recycled Matter . | . . . Retrieved Matter . | . . . Retrieved Components . | . . . Parts Scanalyzed . | . . . Part Schematics Acquired . | . . . Parts Damaged . | . . . Bothacking | -11 -10 -10 ------------ Run | Scr Mat Min Used RIF Installer . | . . . Robots Hacked 1 | . . 1 Non-combat . | . . . Combat 1 | . . 1 Robot Hacks Applied 1 | . . 1 parse_system 1 | . . 1 Relay Couplers Released . | . . . Robots Rewired . | . . . Allies Hacked . | . . . Hacks Repelled . | . . . Allies | -11 -10 -10 -------- Run | Scr Mat Min Total Allies . | . . . Largest Group . | . . . Highest-Rated Group . | . . . Highest-Rated Ally . | . . . Total Orders . | . . . Ally Attacks . | . . . Total Damage . | . . . Kills . | . . . Allies Corrupted . | . . . Allies Melted . | . . . Intel | -11 -10 -10 ------- Run | Scr Mat Min Robot Analysis Total . | . . . Derelict Logs Recovered 2 | . . 2 Drone Launches . | . . . Drone Recoveries . | . . . Exploration | -11 -10 -10 ------------- Run | Scr Mat Min Turns Passed 502 | 40 96 366 Spaces Moved 368 | 31 82 255 Core 2 | 1 . 1 Treads . | . . . Legs . | . . . Wheels 360 | 30 82 248 Hover . | . . . Flight 6 | . . 6 Fastest Speed 50 | 50 100 90 Average Speed 99 | 98 100 99 Slowest Speed 200 | 100 100 200 Overloaded Moves . | . . . Propulsion Burnouts . | . . . Robots Hopped . | . . . Cave-ins Triggered . | . . . Exploration Rate (%) 28 | 4 23 59 Regions Visited 2 Branch Regions 1 Pre-discovered Areas . | . . . Known Exits Taken . | . . . Unknown Exits Taken 2 | 1 1 . Scrap Searched 1 | . . 1 Spaces Dug . | . . . Terrain Destroyed 21 | . . 21 Melee . | . . . Projectile . | . . . AOE 21 | . . 21 Terrain Rammed . | . . . Walls Destroyed . | . . . Machines Disabled . | . . . Actions | -11 -10 -10 --------- Run | Scr Mat Min Total 454 | 37 89 328 Wait 10 | . . 10 Move 366 | 30 81 255 Hop . | . . . Pick Up 10 | 1 4 5 Fast Attach 12 | 6 1 5 Attach 12 | . . 12 Detach 8 | . . 8 Swap . | . . . Drop 4 | . . 4 Fire 30 | . 3 27 Melee 1 | . . 1 Ram 1 | . . 1 Kick . | . . . Crush . | . . . Escape Stasis . | . . . Rewire . | . . . Trap . | . . . Miscellaneous . | . . . Route ------- -11/Scrapyard -10/Materials -10/Mines History --------- Turn | Location | Event 17 | -11/Scrapyard | Discovered new exit (range 16) 41 | -11/Scrapyard | Entered Materials 132 | -10/Materials | Discovered new exit (range 6) 137 | -10/Materials | Entered Mines 164 | -10/Mines | Core integrity fell below 50% 211 | -10/Mines | Learned Materials trap positions 232 | -10/Mines | Learned Materials emergency access door positions 256 | -10/Mines | Joined a pair of Derelicts in attacking an 0b10 outpost 331 | -10/Mines | Build established: Mutant 340 | -10/Mines | Assembled infested the area 369 | -10/Mines | Core integrity fell below 20% 405 | -10/Mines | Met 8R-AWN 463 | -10/Mines | Attacked by 8R-AWN 503 | -10/Mines | Destroyed by 8R-AWN with 8R-AWN's Boregun Last Messages --------------- 00491_ K-01 Serf collects debris. 00491_ Penetrated by HV Slug. 00491_ Critical hit. 00491_ Grenade Launcher destroyed. 00491_ HV Slug penetrates Wall. 00491_ Penetrated by HV Slug. 00491_ HV Slug penetrates Wall. 00492_ The unstable cave ceiling collapses. 00492_ Acquired 66 matter. 00494_ Acquired Com. Wheel. 00495_ The unstable cave ceiling collapses. 00495_ K-01 Serf collects debris. 00497_ Acquired Beam Rifle. 00497_ K-01 Serf collects debris. 00497_ HV Slug penetrates Wall. 00497_ Penetrated by HV Slug. 00497_ HV Slug penetrates Wall. 00501_ The unstable cave ceiling collapses. 00501_ K-01 Serf collects debris. 00503_ Penetrated by HV Slug. Map ----- +----------------------------------------------------+ | ?????????????????????????????????????????????????? | | ?????????????????????????????????????????????????? | | ????????????????######???????????????????????????? | | ???????????????##"!["##??????????????????????????? | | ???????????????#""[[""#??????????????????????????? | | ???????????????#==! =%#??????????????????????????? | | ???????????????##=*[[##??????????????????????????? | | ???????????????###++###??????????????????????????? | | ???????????????# #??????????????????????????? | | ??????????????## !##?????????????????????????? | | ??????????????# #???????????????????????### | | ??????????????# #??????????????????????## | | ??????????????# #????????????????????### " | | ??????????????# #????????????######### % | | ??????????????# #???????????## %% | | ??????????????# #???????????# !| % | | ??????????????# #???????????## ! ! "# %% | | ??????????????# #????????????##### ###% % | | ??????????????# #???????#????????# ##"% | | ??????????????##### ####?????? ##??????## | | ??????????????????# #????????? ##????## #### | | ??????????????????# #????????? ##???# #"" | | ??????????????????# #######??# ##??# # "# | | ??????????????????# #?? #??## # " | | ??????????????????# ##### #?# #??# % #"# | | ??????????????????# #???#@##" ????## ## | | ??????????????????# ##### ## #????### # | | ?????????????????## #????## # | | ????????????????## ###### # | | ????????????????# =! | | ???????????????## !% | | ??????????????## * ##### ### | | ??????????????# # # #??####?## | | ??????????????# ## #????????## | | ??????????????# # # #?????????## | | ??????????????## # ##??????????# | | ???????????????## # #?????????## | | ????????????????# # # g # #?????????# # | | ????????????????## # ##????????# ## | | ?????????????????#??# #????????# ##? | | ????????????????????# #????????# ####?? | | ????????????????????# ## #????????## ##????? | | ????????????????????# #?????????###??????? | | ??????# ########### ##??????????????????? | | ?????# / = % #???????????????????? | | ????# ### ###### * ???????????????????? | | ????# ????????# ##???# #??????????????????? | | ?????????????## ##??# # # ???????????????? | | ?########???## ##?# ##?# ????????????? | | ?# #??## ### #??? ????????????? | +----------------------------------------------------+ Best States ------------- Heat Dissipation 25 Energy Generation 10 Energy Capacity 125 Matter Stores 300 Matter Capacity 300 Sight Range 16 Terrain Scan Density 10 Evasion (%) 42 Targeting Accuracy 5 Item Schematics ----------------- None Robot Schematics ------------------ None Fabricated ------------ Nothing Alien Tech Used ----------------- None Achievements -------------- None Challenges ------------ None Game ------ Seed HellfirePotentialShield Manual? 0 Play Time 00:31:00 Cumulative 1.4 hours Start 2020.12.17 @ 21:46:58 End 2020.12.17 @ 22:36:31 Sessions 1 Manual Loads 0 Difficulty Rogue Special Mode None Game No. 4 Rogue 4 Adventurer 0 Explorer 0 Win Type - Total 0 Types 0/0/0/0/0/0/0/0/0 Lore% 0 Gallery% 3 Achievement% 1 Wizard Run 0 Options --------- ASCII 0 Keyboard 0 Movement Vi Keybinds 0 Fullscreen 1 Font 28/SmallcapsGlow Map View 67x55 Tactical HUD 1 Map Filters NONE Filters NONE Steam 1 RUN: db44220e-2a45-4fbf-9a3d-683801d57b01